{"text_format":"3","workbook":"xlsx","n_sheets":2,"sheets":["متعقب طلب الاستجابة","ملخص طلب الاستجابة"],"not_rendered":{"charts":2,"defined_names":22},"read":"whole","date_system":"1900"}

{"sheet":"متعقب طلب الاستجابة","index":0,"n_rows":15,"n_cols":15,"rows_kept":15,"merged":[[0,3,0,4],[0,5,0,7],[1,3,1,14]]}
[{"$nulls":5},"ملخص طلب الاستجابة"]
[null,"أدخل تاريخ الزفاف:",null,"متعقب دعوة حفل الزواج"]
[null,{"$f":"TODAY()+283","v":"2019-06-28"},null,"اسم الضيف","هل أرسلت؟","طلب الاستجابة","الحفل","الضيوف","العلاقة","العنوان","المدينة","المنطقة","الرمز البريدي","الهاتف","عنوان البريد الإلكتروني لجهة الاتصال"]
[null,"الأيام المتبقية",null,"الاسم 1","نعم","نعم",1,"ضيف من طرف الزوج 1","الشقيق","العنوان","المدينة","المنطقة","الرمز البريدي","الهاتف","someone@example.com"]
[null,{"$f":"الأيام_المتبقية","v":283},null,"الاسم 2","نعم","لا",3,"ضيف من طرف الزوج 1","صديق","العنوان","المدينة","المنطقة","الرمز البريدي","الهاتف","someone@example.com"]
[null,"الحضور",null,"الاسم 3","نعم","نعم",1,"الأخرى","صديق","العنوان","المدينة","المنطقة","الرمز البريدي","الهاتف","someone@example.com"]
[null,{"$f":"إجمالي_الحاضرين","v":12},null,"الاسم 4","نعم","لا",2,"ضيف من طرف الزوج 2","صديق","العنوان","المدينة","المنطقة","الرمز البريدي","الهاتف","someone@example.com"]
[null,"عدم الحضور",null,"الاسم 5","نعم","نعم",2,"ضيف من طرف الزوج 2","صديق","العنوان","المدينة","المنطقة","الرمز البريدي","الهاتف","someone@example.com"]
[null,{"$f":"إجمالي_غير_الحاضرين","v":6},null,"الاسم 6","نعم","موافقة مبدئية",null,"الأخرى","صديق","العنوان","المدينة","المنطقة","الرمز البريدي","الهاتف","someone@example.com"]
[null,"في انتظار الرد",null,"الاسم 7","نعم","نعم",2,"ضيف من طرف الزوج 2","صديق","العنوان","المدينة","المنطقة","الرمز البريدي","الهاتف","someone@example.com"]
[null,{"$f":"طلبات_الاستجابة_التي_في_انتظار_الرد","v":1},null,"الاسم 8","نعم","لا",1,"الأخرى","صديق","العنوان","المدينة","المنطقة","الرمز البريدي","الهاتف","someone@example.com"]
[{"$nulls":3},"الاسم 9","نعم","نعم",4,"ضيف من طرف الزوج 1","صديق","العنوان","المدينة","المنطقة","الرمز البريدي","الهاتف","someone@example.com"]
[{"$nulls":3},"الاسم 10","نعم","نعم",2,"ضيف من طرف الزوج 1","صديق","العنوان","المدينة","المنطقة","الرمز البريدي","الهاتف","someone@example.com"]
[{"$nulls":3},"الاسم 11","نعم",null,null,"ضيف من طرف الزوج 2","الشقيق","العنوان","المدينة","المنطقة","الرمز البريدي","الهاتف","someone@example.com"]
[{"$nulls":3},"الإجماليات:",{"$f":"COUNTIF('متعقب طلب الاستجابة'!$E$4:$E$14,\"نعم\")","v":11},{"$f":"COUNTA('متعقب طلب الاستجابة'!$F$4:$F$14)","v":10},{"$f":"SUBTOTAL(109,tblInvites[الحفل])","v":18}]

{"sheet":"ملخص طلب الاستجابة","index":1,"n_rows":11,"n_cols":15,"rows_kept":11,"merged":[[0,3,0,4],[0,5,0,8],[1,3,1,11],[2,3,6,3],[2,4,6,4],[7,3,11,3],[7,4,11,4]]}
[{"$nulls":3},"متعقب طلب الاستجابة"]
[null,"أدخل تاريخ الزفاف:",null,"ملخص طلب الاستجابة",{"$nulls":10},"الملاحظات"]
[null,{"$f":"تاريخ_حفل_الزواج","v":"2019-06-28"},null,"نعم","المخطط الشريطي متفاوت المسافات يعرض أنواع الضيوف التي استجابت \"بنعم لطلب الاستجابة\" في هذه الخلية."]
[null,"الأيام المتبقية",{"$nulls":3},"أخرى",{"$f":"IFERROR(SUMIFS(tblInvites[الحفل],tblInvites[الضيوف],\"=الأخرى\",tblInvites[طلب الاستجابة],\"نعم\"),0)","v":1},{"$f":"tblInvites[[#Totals],[هل أرسلت؟]]","v":11}]
[null,{"$f":"الأيام_المتبقية","v":283},{"$nulls":3},"ضيف من طرف الزوجة 2",{"$f":"IFERROR(SUMIFS(tblInvites[الحفل],tblInvites[الضيوف],\"=ضيف من طرف الزوج 2\",tblInvites[طلب الاستجابة],\"نعم\"),0)","v":4},{"$f":"tblInvites[[#Totals],[هل أرسلت؟]]","v":11}]
[null,"الحضور",{"$nulls":3},"ضيف من طرف الزوج 1",{"$f":"IFERROR(SUMIFS(tblInvites[الحفل],tblInvites[الضيوف],\"=ضيف من طرف الزوج 1\",tblInvites[طلب الاستجابة],\"نعم\"),0)","v":7},{"$f":"tblInvites[[#Totals],[هل أرسلت؟]]","v":11}]
[null,{"$f":"إجمالي_الحاضرين","v":12}]
[null,"عدم الحضور",null,"لا","المخطط الشريطي متفاوت المسافات يعرض أنواع الضيوف التي استجابت \"بلا لطلب الاستجابة\" في هذه الخلية."]
[null,{"$f":"إجمالي_غير_الحاضرين","v":6},{"$nulls":3},"أخرى",{"$f":"IFERROR(SUMIFS(tblInvites[الحفل],tblInvites[الضيوف],\"=الأخرى\",tblInvites[طلب الاستجابة],\"لا\"),0)","v":1},{"$f":"tblInvites[[#Totals],[هل أرسلت؟]]","v":11}]
[null,"في انتظار الرد",{"$nulls":3},"ضيف من طرف الزوجة 2",{"$f":"IFERROR(SUMIFS(tblInvites[الحفل],tblInvites[الضيوف],\"=ضيف من طرف الزوج 2\",tblInvites[طلب الاستجابة],\"لا\"),0)","v":2},{"$f":"tblInvites[[#Totals],[هل أرسلت؟]]","v":11}]
[null,{"$f":"طلبات_الاستجابة_التي_في_انتظار_الرد","v":1},{"$nulls":3},"ضيف من طرف الزوج 1",{"$f":"IFERROR(SUMIFS(tblInvites[الحفل],tblInvites[الضيوف],\"=ضيف من طرف الزوج 1\",tblInvites[طلب الاستجابة],\"لا\"),0)","v":3},{"$f":"tblInvites[[#Totals],[هل أرسلت؟]]","v":11}]